Cogmind - Beta 13 @@@ ROGUE MODE // 2024.04.09 @ 14:19:37 Player: Allan Result: Self-destructed Performance ------------- Evolutions (3) 1500 Regions Visited (7) 1400 Robots Destroyed (37) 185 Value Destroyed (982) 982 Prototype IDs (2) 40 Alien Tech Used (0) 0 Bonus (322) 322 TOTAL SCORE: 4429 Bonus ------- High Alert Combat Kills 22 Aligned with FarCom 300 Cogmind --------- Core Integrity 700/700 Matter 3/300 Energy 240/240 System Corruption 0% Temperature Cool (0) Movement Flying (50) Location -7/Factory Parts ------- > --- POWER (1) -------- Nuclear Core > --- PROPULSION (4) --- Flying Fortress v7 > --- UTILITY (5) ------ Small Storage Unit Sensor Array Signal Interpreter Hacking Suite > --- WEAPON (3) ------- Advanced EMP Blaster > --- INVENTORY (8) ---- Light Nuclear Core Signal Interpreter Reaction Control System Advanced EMP Blaster Rocket Launcher Improved Grenade Launcher Remote Datajack Peak State ------------ > --- POWER ------------ Nuclear Core > --- PROPULSION ------- Flying Fortress v7 > --- UTILITY ---------- Small Storage Unit Sensor Array Signal Interpreter Hacking Suite > --- WEAPON ----------- Advanced EMP Blaster > --- INVENTORY -------- Light Nuclear Core Signal Interpreter Reaction Control System Advanced EMP Blaster Rocket Launcher Improved Grenade Launcher Remote Datajack [Rating: 47] Favorites ----------- Power Light Nuclear Core Engine Ion Engine Power Core Light Nuclear Core Propulsion Hover Unit Wheel Wheel Hover Unit Hover Unit Flight Unit Flying Fortress v7 Utility Small Storage Unit Device Sensor Array Storage Small Storage Unit Processor Signal Interpreter Hackware Hacking Suite Weapon Mining Laser Energy Gun EM Pulse Gun Ballistic Gun Assault Rifle Launcher Rocket Launcher Special Weapon Mining Laser Build | -11 -10 -9 -9 -9 -8 -8 -7 ------- Run | Yrd Mat Mat Min Exi Min Mat Fac Slots Evolved 6 | . . 2 . . . 2 2 Power . | . . . . . . . . Propulsion 2 | . . 1 . . . 1 . Utility 3 | . . 1 . . . 1 1 Weapon 1 | . . . . . . . 1 Parts Attached 36 | 6 14 4 . 6 . 6 . Power 5 | 1 1 . . 2 . 1 . Engine 2 | 1 . . . 1 . . . Core 3 | . 1 . . 1 . 1 . Reactor . | . . . . . . . . Propulsion 17 | 2 8 1 . 4 . 2 . Treads . | . . . . . . . . Leg . | . . . . . . . . Wheel 5 | 2 3 . . . . . . Hover 10 | . 5 1 . 4 . . . Flight 2 | . . . . . . 2 . Utility 6 | 1 3 1 . . . 1 . Device 3 | . 2 1 . . . . . Storage 1 | 1 . . . . . . . Processor 1 | . 1 . . . . . . Hackware 1 | . . . . . . 1 . Protection . | . . . . . . . . Artifact . | . . . . . . . . Weapon 8 | 2 2 2 . . . 2 . Energy Gun 1 | 1 . . . . . . . Energy Cannon . | . . . . . . . . Ballistic Gun 3 | 1 2 . . . . . . Ballistic Cannon . | . . . . . . . . Launcher 3 | . . 1 . . . 2 . Special Weapon 1 | . . 1 . . . . . Impact Weapon . | . . . . . . . . Slashing Weapon . | . . . . . . . . Piercing Weapon . | . . . . . . . . Special Melee Weapon . | . . . . . . . . Unidentified Prototypes 1 | . . . . . . 1 . Parts Lost 3 | . 2 . . . . 1 . Power . | . . . . . . . . Propulsion 2 | . 2 . . . . . . Utility . | . . . . . . . . Weapon 1 | . . . . . . 1 . Highest Loss Streak 1 | . 1 . . . . 1 . To Critical Strikes . | . . . . . . . . Average Slot Usage (%) 86 | . 96 100 100 99 100 69 53 Engine 1 | . 4 . . . . . . Core 9 | . 9 11 11 11 11 9 7 Wheel 5 | . 16 . . . . . . Hover 13 | . 8 33 33 32 33 . . Flight 2 | . . . . . . 8 7 Device 8 | . 7 11 11 11 11 9 7 Storage 11 | . 14 11 11 11 11 9 7 Processor 8 | . 6 11 11 11 11 9 7 Hackware 2 | . . . . . . 9 7 Energy Gun 1 | . 4 . . . . . . Ballistic Gun 8 | . 23 5 . . . . . Launcher 6 | . . 8 11 11 11 9 7 Special Weapon 4 | . . 8 11 11 11 6 . Naked Turns . | . . . . . . . . Heaviest Build 20 | 13 15 16 16 16 16 20 19 Greatest Support 50 | 20 26 18 18 18 18 50 50 Greatest Overweight (x) 5 | . 1 . . 2 . 5 . Average Overweight (x) . | . . . . . . . . Largest Inventory Capacity 8 | 8 8 8 8 8 8 8 8 Average Capacity 7 | 6 8 8 8 8 8 8 8 Most Carried 8 | 4 8 8 8 8 8 8 7 Average Carried 6 | 2 7 6 8 7 8 6 6 Final Capacity 8 | 8 8 8 8 8 8 8 8 Final Carried 8 | 4 7 8 8 8 8 6 7 Class Distribution -------------------- 65% | Mutant 34% | Scout Dominant Class ---------------- Mutant | -10/Materials Mutant | -9/Materials Mutant | -9/Mines Mutant | -9/Exiles Scout | -8/Mines Scout | -8/Materials Scout | -7/Factory Resources | -11 -10 -9 -9 -9 -8 -8 -7 ----------- Run | Yrd Mat Mat Min Exi Min Mat Fac Matter Collected 777 | 208 348 123 11 . . 87 . Remotely . | . . . . . . . . Salvage Created 998 | . 551 35 72 . . 340 . Parts 76 | . 37 7 4 . . 28 . Haulers Intercepted 4 | . 1 . . . . 3 . Recyclers Shooed 2 | . 2 . . . . . . Parts Field Recycled . | . . . . . . . . Retrieved Matter . | . . . . . . . . Parts Self-Destructed . | . . . . . . . . Prevented . | . . . . . . . . Kills | -11 -10 -9 -9 -9 -8 -8 -7 ------- Run | Yrd Mat Mat Min Exi Min Mat Fac Combat Hostiles Destroyed 27 | . 8 5 2 . . 12 . Guns 8 | . 8 . . . . . . AOE 19 | . . 5 2 . . 12 . Classes Destroyed 9 | . 5 2 . . . 2 . Worker 1 | . 1 . . . . . . Builder 1 | . . . . . . 1 . Tunneler 1 | . . . . . . 1 . Hauler 4 | . 1 . . . . 3 . Recycler 1 | . 1 . . . . . . Watcher 2 | . 2 . . . . . . Swarmer 8 | . . 4 . . . 4 . Grunt 16 | . 8 . 2 . . 6 . Sentry 3 | . . 1 . . . 2 . Best Kill Streak 9 | . 5 4 2 . . 9 . Combat Bots Only 6 | . 2 4 2 . . 6 . Max Kills in Single Turn 3 | . 1 3 2 . . 3 . Gunslinging . | . . . . . . . . Exploded 3 | . . 3 2 . . 3 . Melee . | . . . . . . . . Uniques/NPCs Destroyed . | . . . . . . . . Combat | -11 -10 -9 -9 -9 -8 -8 -7 -------- Run | Yrd Mat Mat Min Exi Min Mat Fac Hostile Shots Fired 92 | . 47 10 . . . 35 . Missed 36 | . 13 3 . . . 20 . Damage Taken 1018 | . 504 130 . . . 384 . Core 231 | . 131 48 . . . 52 . Absorbed by Shields . | . . . . . . . . Core Remaining (%) 81 | 100 47 . . . 88 90 . Volleys Fired 91 | . 53 7 1 2 . 28 . Largest 2 | . 2 1 1 1 . 1 . Hottest 100 | . 60 33 33 100 . 100 . Shots Fired 144 | . 106 7 1 2 . 28 . Gun 106 | . 106 . . . . . . Cannon . | . . . . . . . . Launcher 35 | . . 7 1 . . 27 . Special 3 | . . . . 2 . 1 . Kinetic 75 | . 75 . . . . . . Thermal 3 | . . . . 2 . 1 . Explosive 27 | . . 7 1 . . 19 . Electromagnetic 39 | . 31 . . . . 8 . Robot Hit Streak 9 | . 8 4 5 . . 9 . Robot Miss Streak 3 | . 3 2 . . . 3 . Penetration Max . | . . . . . . . . Secondary Targets 1 | . 1 . . . . . . Max Gunslinging Chain 1 | . 1 . . . . . . Shots Hit Robots 85 | . 60 5 1 . . 19 . Core Hits 76 | . 29 8 2 . . 37 . Critical Kills . | . . . . . . . . Critical Parts Destroyed . | . . . . . . . . Critical Strikes 1 | . 1 . . . . . . Corrupt 1 | . 1 . . . . . . Melee Attacks . | . . . . . . . . Impact . | . . . . . . . . Slashing . | . . . . . . . . Piercing . | . . . . . . . . Sneak Attacks . | . . . . . . . . Combat Hostiles . | . . . . . . . . Follow-up Attacks . | . . . . . . . . Damage Inflicted 3124 | . 861 365 144 . . 1754 . Guns 813 | . 813 . . . . . . Cannons . | . . . . . . . . Explosions 2311 | . 48 365 144 . . 1754 . Melee . | . . . . . . . . Ramming . | . . . . . . . . Kinetic 470 | . 470 . . . . . . Thermal 124 | . 48 . . . . 76 . Explosive 1822 | . . 365 144 . . 1313 . Electromagnetic 708 | . 343 . . . . 365 . Impact . | . . . . . . . . Slashing . | . . . . . . . . Piercing . | . . . . . . . . Highest Corruption 1 | . 1 . . . . . . Average Corruption 1 | . 1 . . . . . . Corruption Purged . | . . . . . . . . Corruption Blocked . | . . . . . . . . Effects 1 | . 1 . . . . . . Matter Fused 1 | . 1 . . . . . . Overload Shots . | . . . . . . . . Overflow Damage 24 | . . 4 . . . 20 . Projectiles . | . . . . . . . . Explosions 24 | . . 4 . . . 20 . Melee . | . . . . . . . . Knockbacks . | . . . . . . . . Impact . | . . . . . . . . Kinetic . | . . . . . . . . Secondary . | . . . . . . . . Self-Inflicted Damage 223 | . . 62 . . . 161 . Shots 10 | . . 2 . . . 8 . Rammed . | . . . . . . . . Targets Rammed . | . . . . . . . . Kicked . | . . . . . . . . Crushed . | . . . . . . . . Highest Temperature 156 | . 156 28 . 59 . 73 . Average Temperature 45 | . 57 17 . 31 . 29 . Received Heat Transfer 426 | . 264 36 . . . 126 . Siege Activations . | . . . . . . . . Robots Corrupted . | . . . . . . . . Combat Hostiles . | . . . . . . . . Parts Fried 1 | . 1 . . . . . . Impact Corruptions . | . . . . . . . . Robots Melted . | . . . . . . . . Combat Hostiles . | . . . . . . . . Parts Melted . | . . . . . . . . Heat Transferred 50 | . . . . . . 50 . Parts Sabotaged . | . . . . . . . . Parts Stolen . | . . . . . . . . Parts Stripped . | . . . . . . . . Power Chain Reactions 4 | . 1 . . . . 3 . Alert | -11 -10 -9 -9 -9 -8 -8 -7 ------- Run | Yrd Mat Mat Min Exi Min Mat Fac Peak Influence 480 | . 180 286 161 . . 480 233 Initial 218 | . . 45 111 . . . 218 Average 153 | . 80 184 161 . . 226 225 Maximum Alert Level 2 | . . 1 . . . 2 1 Low Security (%) 62 | 100 100 44 100 . 100 34 . Level 1 34 | . . 55 . . . 52 100 Level 2 3 | . . . . . . 13 . Level 3 . | . . . . . . . . Level 4 . | . . . . . . . . Level 5 . | . . . . . . . . High Security . | . . . . . . . . Max Security . | . . . . . . . . Squads Dispatched 11 | . 3 2 . . . 5 1 Investigation 4 | . 2 . . . . 2 . Extermination . | . . . . . . . . Reinforcement 6 | . 1 2 . . . 2 1 Assault . | . . . . . . . . Garrison 1 | . . . . . . 1 . Intercept . | . . . . . . . . Searches Triggered . | . . . . . . . . Construction Impeded 1 | . . . . . . 1 . Haulers Reinforced . | . . . . . . . . Active Scanning Responses . | . . . . . . . . Cargo Convoy Interrupts . | . . . . . . . . Stealth | -11 -10 -9 -9 -9 -8 -8 -7 --------- Run | Yrd Mat Mat Min Exi Min Mat Fac Distress Signals 8 | . 2 5 . . . 1 . Communications Jammed . | . . . . . . . . Distress Signals . | . . . . . . . . Times Spotted 53 | . 14 11 1 . . 26 1 Peak Tracking Total 5 | . 5 4 1 . . 5 1 Tactical Retreats 6 | . 1 1 . . . 4 . Traps | -11 -10 -9 -9 -9 -8 -8 -7 ------- Run | Yrd Mat Mat Min Exi Min Mat Fac Traps Triggered 2 | . 2 . . . . . . Indirectly . | . . . . . . . . Trap Hack Attempts . | . . . . . . . . Triggered . | . . . . . . . . Disarmed . | . . . . . . . . Reprogrammed . | . . . . . . . . Reused . | . . . . . . . . Traps Extracted . | . . . . . . . . Installed . | . . . . . . . . Triggered . | . . . . . . . . Machines | -11 -10 -9 -9 -9 -8 -8 -7 ---------- Run | Yrd Mat Mat Min Exi Min Mat Fac Machines Disabled 6 | . . 1 . . . 5 . Max in Single Turn 2 | . . 1 . . . 2 . Machines Repaired . | . . . . . . . . Machines Dismantled . | . . . . . . . . Machines Sabotaged . | . . . . . . . . Overloaded Fab Kills . | . . . . . . . . Hacking | -11 -10 -9 -9 -9 -8 -8 -7 --------- Run | Yrd Mat Mat Min Exi Min Mat Fac Machines Accessed 9 | . 4 1 . . . 4 . Terminals 6 | . 3 1 . . . 2 . Fabricators . | . . . . . . . . Repair Stations . | . . . . . . . . Recycling Units 2 | . 1 . . . . 1 . Scanalyzers 1 | . . . . . . 1 . Garrison Access . | . . . . . . . . Total Hacks 17 | . 7 1 . . . 9 . Successful 8 | . 3 . . . . 5 . Failed 9 | . 4 1 . . . 4 . Catastrophic 4 | . 1 . . . . 3 . Database Lockouts . | . . . . . . . . Manual 12 | . 5 1 . 1 . 5 . Terminals 12 | . 6 1 . . . 5 . Fabricators . | . . . . . . . . Repair Stations . | . . . . . . . . Recycling Units 2 | . 1 . . . . 1 . Scanalyzers 3 | . . . . . . 3 . Garrison Access . | . . . . . . . . Terminal Hacks 4 | . 2 . . . . 2 . Branch Access Points 1 | . . . . . . 1 . Alert Level 2 | . 1 . . . . 1 . Registered Components 1 | . 1 . . . . . . Fabricator Hacks . | . . . . . . . . Repair Station Hacks . | . . . . . . . . Recycling Unit Hacks 2 | . 1 . . . . 1 . Report Inventory 2 | . 1 . . . . 1 . Scanalyzer 2 | . . . . . . 2 . Insert Component 2 | . . . . . . 2 . Garrison Access Hacks . | . . . . . . . . Unauthorized Hacks . | . . . . . . . . Terminals . | . . . . . . . . Fabricators . | . . . . . . . . Repair Stations . | . . . . . . . . Recycling Units . | . . . . . . . . Scanalyzers . | . . . . . . . . Garrison Access . | . . . . . . . . Data Cores Recovered . | . . . . . . . . Used . | . . . . . . . . Hacking Detections 6 | . 2 1 . . . 3 . Full Trace Events 3 | . 1 . . . . 2 . Feedback Events 1 | . 1 . . . . . . Corruption 1 | . 1 . . . . . . Feedback Blocked . | . . . . . . . . Robot Schematics Acquired . | . . . . . . . . Robots Built . | . . . . . . . . Authchips . | . . . . . . . . Time . | . . . . . . . . Total Robot Build Rating . | . . . . . . . . Part Schematics Acquired . | . . . . . . . . Parts Built . | . . . . . . . . Authchips . | . . . . . . . . Time . | . . . . . . . . Total Part Build Rating . | . . . . . . . . Parts Repaired . | . . . . . . . . Time . | . . . . . . . . Parts Recycled . | . . . . . . . . Recycled Matter . | . . . . . . . . Retrieved Matter . | . . . . . . . . Retrieved Components . | . . . . . . . . Parts Scanalyzed . | . . . . . . . . Part Schematics Acquired . | . . . . . . . . Parts Damaged . | . . . . . . . . Bothacking | -11 -10 -9 -9 -9 -8 -8 -7 ------------ Run | Yrd Mat Mat Min Exi Min Mat Fac Used RIF Installer . | . . . . . . . . Robots Hacked . | . . . . . . . . Non-combat . | . . . . . . . . Combat . | . . . . . . . . Robot Hacks Applied . | . . . . . . . . Relay Couplers Released . | . . . . . . . . Fabnet Peak Effective % . | . . . . . . . . Robots Rewired . | . . . . . . . . Allies Hacked . | . . . . . . . . Hacks Repelled . | . . . . . . . . Allies | -11 -10 -9 -9 -9 -8 -8 -7 -------- Run | Yrd Mat Mat Min Exi Min Mat Fac Total Allies . | . . . . . . . . Largest Group . | . . . . . . . . Highest-Rated Group . | . . . . . . . . Highest-Rated Ally . | . . . . . . . . Total Orders . | . . . . . . . . Ally Attacks . | . . . . . . . . Total Damage . | . . . . . . . . Kills . | . . . . . . . . Allies Corrupted . | . . . . . . . . Allies Melted . | . . . . . . . . Intel | -11 -10 -9 -9 -9 -8 -8 -7 ------- Run | Yrd Mat Mat Min Exi Min Mat Fac Robot Analysis Total . | . . . . . . . . Derelict Logs Recovered 1 | . . . 1 . . . . Drone Launches . | . . . . . . . . Drone Recoveries . | . . . . . . . . Exploration | -11 -10 -9 -9 -9 -8 -8 -7 ------------- Run | Yrd Mat Mat Min Exi Min Mat Fac Turns Passed 2153 | 58 677 250 71 365 12 521 199 Spaces Moved 2997 | 54 494 418 125 648 24 840 394 Core 5 | 3 . . . . . 2 . Treads . | . . . . . . . . Legs . | . . . . . . . . Wheels 389 | 51 338 . . . . . . Hover 1371 | . 156 418 125 648 24 . . Flight 1232 | . . . . . . 838 394 Fastest Speed 50 | 50 80 52 52 52 52 50 50 Average Speed 59 | 78 95 52 52 52 52 50 50 Slowest Speed 300 | 80 116 52 52 180 52 300 50 Overloaded Moves . | . . . . . . . . Propulsion Burnouts . | . . . . . . . . Robots Hopped 5 | . . . . . . 4 1 Cave-ins Triggered . | . . . . . . . . Exploration Rate (%) 35 | 3 69 29 27 92 8 44 8 Regions Visited 7 Branch Regions 3 Pre-discovered Areas 1 | . . . 1 . . . . Known Exits Taken 6 | . 1 1 1 1 1 1 . Unknown Exits Taken 1 | 1 . . . . . . . Scrap Searched . | . . . . . . . . Spaces Dug 2 | . . . . 1 . 1 . Terrain Destroyed 168 | . 3 61 12 1 . 91 . Melee . | . . . . . . . . Projectile 2 | . . . . 1 . 1 . AOE 166 | . 3 61 12 . . 90 . Terrain Rammed . | . . . . . . . . Walls Destroyed . | . . . . . . . . Machines Disabled . | . . . . . . . . Actions | -11 -10 -9 -9 -9 -8 -8 -7 --------- Run | Yrd Mat Mat Min Exi Min Mat Fac Total 3234 | 69 598 443 129 670 23 908 394 Wait 21 | . 6 8 4 . . 3 . Move 2980 | 53 493 417 124 647 23 831 392 Hop 5 | . . . . . . 4 1 Pick Up 59 | 10 19 5 . 6 . 18 1 Fast Attach . | . . . . . . . . Attach 17 | 6 3 2 . 3 . 3 . Detach . | . . . . . . . . Swap 19 | . 11 2 . 3 . 3 . Drop 42 | . 13 2 . 9 . 18 . Fire 91 | . 53 7 1 2 . 28 . Melee . | . . . . . . . . Ram . | . . . . . . . . Kick . | . . . . . . . . Crush . | . . . . . . . . Escape Stasis . | . . . . . . . . Rewire . | . . . . . . . . Trap . | . . . . . . . . Miscellaneous . | . . . . . . . . Route ------- -11/Scrapyard -10/Materials (discovered 4 exits: *Mat x2 / [*Min x2]) -9/Materials (discovered 2 exits: *Min / *Sto) -9/Mines (discovered 2 exits: *Exi / [*Zio]) -9/Exiles (discovered 2 exits: *Min x2) -8/Mines -8/Materials -7/Factory (discovered 1 exit: *Fac) History --------- Turn | Location | Event 31 | -11/Scrapyard | Discovered new exit (range 16) 59 | -11/Scrapyard | Entered Materials 199 | -10/Materials | Discovered new exit (range 16) 315 | -10/Materials | Build established: Mutant 357 | -10/Materials | Discovered new exit (range 12) 459 | -10/Materials | Discovered new exit (range 14) 576 | -10/Materials | Identified exit to Materials 634 | -10/Materials | Core integrity fell below 50% 709 | -10/Materials | Discovered exit to Materials (range 15) 736 | -10/Materials | Entered another Materials area 736 | -9/Materials | Evolved 2 slots: Propulsion x1, Utility x1 847 | -9/Materials | Discovered new exit (range 16) 873 | -9/Materials | Identified exit to Storage 891 | -9/Materials | Met 8R-AWN 962 | -9/Materials | Discovered new exit (range 13) 975 | -9/Materials | Identified exit to Mines 986 | -9/Materials | Entered Mines 987 | -9/Mines | Assembled infested the area 988 | -9/Mines | Followed 8R-AWN into the Mines 1016 | -9/Mines | Learned location of Storage (-9) 1033 | -9/Mines | A Derelict revealed a hidden shortcut to a safe place 1052 | -9/Mines | Discovered new exit (range 5) 1055 | -9/Mines | Identified exit to Exiles 1057 | -9/Mines | Entered Exiles 1068 | -9/Exiles | Discovered new exit (range 14) 1075 | -9/Exiles | Identified exit to Mines 1088 | -9/Exiles | Welcomed by 8R-AWN 1111 | -9/Exiles | Met EX-HEX 1137 | -9/Exiles | Met EX-DEC 1173 | -9/Exiles | Discovered exit to Mines (range 14) 1224 | -9/Exiles | Visited The Gauntlet 1307 | -9/Exiles | Met EX-BIN 1319 | -9/Exiles | Aligned with FarCom system 1319 | -9/Exiles | Given EX-Vault access code 1343 | -9/Exiles | Opened EX-Vault 1356 | -9/Exiles | Found Prototype Flight Unit 1384 | -9/Exiles | Warned to stay clear of 0b10 Research branches 1422 | -9/Exiles | Left Exiles lab with Flying Fortress v7 1422 | -9/Exiles | Entered Mines 1430 | -8/Mines | Discovered new exit (range 7) 1434 | -8/Mines | Identified exit to Materials 1434 | -8/Mines | Entered Materials 1434 | -8/Materials | Evolved 2 slots: Propulsion x1, Utility x1 1436 | -8/Materials | Identified Flying Fortress v7 1580 | -8/Materials | Garrison activated, responded to threat 1726 | -8/Materials | Build established: Scout 1947 | -8/Materials | Discovered new exit (range 16) 1954 | -8/Materials | Identified exit to Factory 1955 | -8/Materials | Entered Factory 1955 | -7/Factory | Evolved 2 slots: Utility x1, Weapon x1 1989 | -7/Factory | Discovered new exit (range 15) 1996 | -7/Factory | Identified exit to Factory 2154 | -7/Factory | Self-destructed Last Messages --------------- U-05 Engineer lays Concrete. K-01 Serf collects debris. W-25 Informer sends out distress signal. EXIT=FOUND EXIT=IDENTIFIED: FACTORY PARAMETERS=UTILITY+1,WEAPON+1 LOCATION=FACTORY GOAL=ESCAPE Receiving FarCom transmissions... Acquired Reaction Control System. EXIT=FOUND EXIT=IDENTIFIED: FACTORY O-24 Administrator: "IFF HANDSHAKE FAILED. SECURING TERMINAL." ALERT: All DSF locations entering lockdown mode. O-24 Administrator uses terminal to summon reinforcements. ALERT: Hostiles spotted, dispatching reinforcements to Terminal F013. O-24 Administrator locks terminal. Map ----- +----------------------------------------------------+ | ?????????????????????????????????????????????????? | | ?????????????????????????????????????????????????? | | ?????????????????????????????????????????????????? | | ?????????????????????????????????????????????????? | | ?????????????????????????????????????????????????? | | ????????? ???? ???????????????????????????????? | | ????????# ?? ???? ?????????????????????????? | | ?????#### "??" "???? ???????????????????????? | | ??? "??" "??? ??????????????????????? | | ?? "??" ""?? "?????????????????????? | | ?? """" """" ?????????????????????? | | ? """" """" "?????????????????????? | | " """" """" ! ??????????????????????? | | ???????????????????????? | | ?? ????????????????????????? | | ???? ??????????????????????????? | | ??????? #???????????????????????????? | | ########## #???????????????????????????? | | # # ##??????????????????????????? | | # # #??????????????????????????? | | # = + ######?????????????????????? | | # # #?????????????????????? | | # ] # #?????????????????????? | | + #"" """ """ u #?????????????????????? | | # "" #"T """ """ u #?????????????????????? | | # "" #"" """ """ k @ #?????????????????????? | | # """ # #?????????????????????? | | # """ # """ """ k #?????????????????????? | | # """ # """ """ #?????????????????????? | | # # """ """ ????????????????????? | | # """ # ? ????????????????????? | | # """ # "?" """ ???????????????????? | | # """ # "?" """ ???????????????????? | | # ? # ??" """ ??????????????????? | | # ? # ??? ? ??????????????????? | | # ? #? ??? ?????????????????? | | ?###?#+###???????? ?????????????????? | | ????????????????? ?????????????????? | | ?????????????????? "" ?????????????????? | | ?????????????????????### ""? ???????????????????? | | ???????????????????????? ???????????????????????? | | ?????????????????????????????????????????????????? | | ?????????????????????????????????????????????????? | | ?????????????????????????????????????????????????? | | ?????????????????????????????????????????????????? | | ?????????????????????????????????????????????????? | | ?????????????????????????????????????????????????? | | ?????????????????????????????????????????????????? | | ?????????????????????????????????????????????????? | | ?????????????????????????????????????????????????? | +----------------------------------------------------+ Best States ------------- Heat Dissipation 34 Energy Generation 14 Energy Capacity 250 Matter Stores 300 Matter Capacity 300 Sight Range 16 Robot Scan Range 14 Terrain Scan Density 10 Evasion (%) 60 Offensive Hacking 10 Item Schematics ----------------- None Robot Schematics ------------------ None Fabricated ------------ Nothing Alien Tech Used ----------------- None Achievements -------------- Oops Risk Taker Tourist Challenges ------------ None Game ------ Seed MyomerSwordThrower Manual? 0 Play Time 01:07:05 Cumulative 5.0 hours Start 2024.04.07 @ 19:24:33 End 2024.04.09 @ 14:19:37 Sessions 3 Manual Loads 0 Difficulty Rogue Special Mode None Game No. 5 Rogue 5 Adventurer 0 Explorer 0 Win Type - Total 0 Types 0/0/0/0/0/0/0/0/0 Lore% 2 Gallery% 6 Achievement% 7 Wizard Run 0 Options --------- Layout 1 ASCII 0 Keyboard 0 Movement Arrows Keybinds 0 Fullscreen 1 Font 16/SmallcapsGlow Map View 55x38 Zoom Use 0% Tactical HUD 0 Map Filters NONE Filters NONE Steam 1 RUN: ddc6966f-9ac9-4136-891f-7416f2445f25